Cogmind - Beta 14 @@@ ROGUE MODE // 2024.09.05 @ 18:19:22 Player: AnotherZach Result: Destroyed by G-47 Trooper with Particle Gun Performance ------------- Evolutions (2) 1000 Regions Visited (3) 600 Robots Destroyed (49) 245 Value Destroyed (1259) 1259 Prototype IDs (1) 20 Alien Tech Used (0) 0 Bonus (52) 52 TOTAL SCORE: 3176 Bonus ------- High Alert Combat Kills 52 Cogmind --------- Core Integrity 0/550 Matter 284/300 Energy 143/265 System Corruption 0% Temperature Cool (56) Movement Hovering (40) Location -8/Materials Parts ------- > --- POWER (1) -------- Improved Ion Engine > --- PROPULSION (4) --- Airjet Aerolev Unit Aerolev Unit Aerolev Unit > --- UTILITY (4) ------ Improved Heat Sink Small Storage Unit Targeting Computer > --- WEAPON (2) ------- Beam Rifle Particle Gun > --- INVENTORY (8) ---- Light Nuclear Core Faulty Improved VTOL Module Medium Storage Unit Improved Terrain Scanner Makeshift System Restoration Module Tractor Beam Peak State ------------ > --- POWER ------------ Improved Ion Engine > --- PROPULSION ------- Airjet Aerolev Unit Aerolev Unit Aerolev Unit > --- UTILITY ---------- Improved Heat Sink Small Storage Unit Targeting Computer > --- WEAPON ----------- Beam Rifle Particle Gun > --- INVENTORY -------- Light Nuclear Core Medium Storage Unit Improved Terrain Scanner Makeshift System Restoration Module Tractor Beam [Rating: 27] Favorites ----------- Power Ion Engine Engine Ion Engine Power Core Light Nuclear Core Propulsion Light Treads Treads Light Treads Wheel Compact Wheel Hover Unit Aerolev Unit Utility Large Storage Unit Device Structural Scanner Storage Large Storage Unit Processor Targeting Computer Protection Improved Weapon Shielding Weapon Assault Rifle Energy Gun Small Laser Ballistic Gun Assault Rifle Launcher Rocket Launcher Special Weapon Mining Laser Build | -11 -10 -10 -8 ------- Run | Yrd Mat Sub Mat Slots Evolved 4 | . . . 4 Power . | . . . . Propulsion 2 | . . . 2 Utility 2 | . . . 2 Weapon . | . . . . Parts Attached 68 | 7 3 6 52 Power 9 | 1 . . 8 Engine 6 | 1 . . 5 Core 3 | . . . 3 Reactor . | . . . . Propulsion 19 | 2 . 2 15 Treads 4 | 2 . 1 1 Leg . | . . . . Wheel 10 | . . 1 9 Hover 5 | . . . 5 Flight . | . . . . Utility 20 | 2 2 1 15 Device 9 | 1 1 . 7 Storage 5 | 1 1 . 3 Processor 1 | . . . 1 Hackware . | . . . . Protection 5 | . . 1 4 Artifact . | . . . . Weapon 20 | 2 1 3 14 Energy Gun 7 | 1 . 1 5 Energy Cannon . | . . . . Ballistic Gun 10 | 1 . 2 7 Ballistic Cannon . | . . . . Launcher 2 | . . . 2 Special Weapon 1 | . 1 . . Impact Weapon . | . . . . Slashing Weapon . | . . . . Piercing Weapon . | . . . . Special Melee Weapon . | . . . . Unidentified Prototypes 1 | . . . 1 Corrupted Parts 1 | . . 1 . System Corruption 4 | . . 4 . Parts Lost 33 | . . 3 30 Power 5 | . . . 5 Propulsion 12 | . . 2 10 Utility 8 | . . . 8 Weapon 8 | . . 1 7 Highest Loss Streak 15 | . . 2 15 To Critical Strikes . | . . . . Average Slot Usage (%) 86 | . 100 98 70 Engine 9 | . 14 14 4 Core 1 | . . . 2 Treads 15 | . 28 23 3 Wheel 4 | . . 4 8 Hover 2 | . . . 6 Device 9 | . 14 8 7 Storage 11 | . 14 14 9 Protection 6 | . . 5 10 Energy Gun 8 | . 13 5 7 Ballistic Gun 12 | . 14 18 7 Special Weapon 1 | . . 3 . Peak Build Rating 27 | 9 9 10 27 Average Rating 11 | 5 8 8 17 On Entrance 6 | . 9 8 8 Naked Turns . | . . . . Heaviest Build 37 | 14 29 30 37 Greatest Support 58 | 40 40 40 58 Greatest Overweight (x) 11 | . . 1 11 Average Overweight (x) . | . . . . Largest Inventory Capacity 15 | 8 15 15 15 Average Capacity 13 | 7 11 15 13 Most Carried 15 | 6 13 15 15 Average Carried 10 | 2 9 13 10 Final Capacity 15 | 8 15 15 8 Final Carried 13 | 6 13 12 6 Class Distribution -------------------- 82% | Mutant 17% | Scavenger-Mutant Dominant Class ---------------- Mutant | -10/Materials Mutant | -10/Subcaves Mutant | -8/Materials Resources | -11 -10 -10 -8 ----------- Run | Yrd Mat Sub Mat Matter Collected 1293 | 125 67 172 929 Remotely 259 | . . . 259 Salvage Created 1492 | 121 160 90 1121 Parts 90 | 5 11 4 70 Haulers Intercepted . | . . . . Recyclers Shooed 3 | . . . 3 Parts Field Recycled . | . . . . Retrieved Matter . | . . . . Parts Self-Destructed 6 | . . 6 . Prevented . | . . . . Kills | -11 -10 -10 -8 ------- Run | Yrd Mat Sub Mat Combat Hostiles Destroyed 36 | . 5 2 29 Guns 26 | . 5 2 19 AOE 10 | . . . 10 Classes Destroyed 11 | 2 3 1 5 Worker 2 | . . . 2 Builder 1 | . 1 . . Tunneler 4 | 2 1 . 1 Recycler 4 | 1 . . 3 Mechanic 1 | . . . 1 Watcher 1 | . . . 1 Swarmer 14 | . 3 . 11 Grunt 13 | . 2 . 11 Duelist 1 | . . . 1 Sentry 6 | . . . 6 Subdweller 2 | . . 2 . Best Kill Streak 12 | 3 3 1 12 Combat Bots Only 9 | . 3 1 9 Max Kills in Single Turn 3 | 1 2 1 3 Gunslinging 1 | . 1 . . Exploded 2 | . . . 2 Melee . | . . . . Uniques/NPCs Destroyed . | . . . . Combat | -11 -10 -10 -8 -------- Run | Yrd Mat Sub Mat Hostile Shots Fired 310 | . 25 51 234 Missed 84 | . 6 9 69 Damage Taken 3707 | . 195 870 2642 Core 781 | . 41 187 553 Absorbed by Shields . | . . . . Redirected to Shielding 335 | . . 40 295 Core Remaining (%) 54 | 100 . 8 . Volleys Fired 153 | 5 18 25 105 Largest 2 | 2 2 2 2 Hottest 121 | 60 100 60 121 Shots Fired 272 | 10 32 34 196 Gun 250 | 10 28 34 178 Cannon . | . . . . Launcher 18 | . . . 18 Special 4 | . 4 . . Kinetic 142 | 5 14 25 98 Thermal 100 | 5 18 . 77 Explosive 18 | . . . 18 Electromagnetic 12 | . . 9 3 Robot Hit Streak 21 | 9 13 21 11 Robot Miss Streak 4 | . 2 1 4 Penetration Max . | . . . . Secondary Targets 6 | . 2 1 3 Max Gunslinging Chain 1 | . 1 1 1 Shots Hit Robots 183 | 9 19 31 124 Core Hits 84 | 4 9 5 66 Critical Kills . | . . . . Critical Parts Destroyed 1 | . . . 1 Critical Strikes 3 | . . . 3 Burn 2 | . . . 2 Destroy 1 | . . . 1 Melee Attacks . | . . . . Impact . | . . . . Slashing . | . . . . Piercing . | . . . . Sneak Attacks . | . . . . Combat Hostiles . | . . . . Follow-up Attacks . | . . . . Damage Inflicted 3520 | 100 242 382 2796 Guns 2443 | 100 218 382 1743 Cannons . | . . . . Explosions 1051 | . . . 1051 Melee . | . . . . Ramming 2 | . . . 2 Kinetic 1228 | 45 119 297 767 Thermal 1132 | 55 123 . 954 Explosive 1020 | . . . 1020 Electromagnetic 138 | . . 85 53 Impact . | . . . . Slashing . | . . . . Piercing . | . . . . Highest Corruption 4 | . . 4 . Average Corruption 4 | . . 4 . Corruption Purged . | . . . . Corruption Blocked . | . . . . Effects 5 | . . 5 . Message Errors 1 | . . 1 . Matter Fused 3 | . . 3 . Heat Flow Errors 1 | . . 1 . Overload Shots . | . . . . Overflow Damage 54 | . . . 54 Projectiles . | . . . . Explosions 54 | . . . 54 Melee . | . . . . Knockbacks . | . . . . Impact . | . . . . Kinetic . | . . . . Secondary . | . . . . Self-Inflicted Damage 244 | . . . 244 Shots 6 | . . . 6 Rammed 1 | . . . 1 Targets Rammed 1 | . . . 1 Kicked . | . . . . Crushed . | . . . . Highest Temperature 270 | . 62 127 270 Average Temperature 68 | . 20 67 77 Received Heat Transfer 1440 | . 36 198 1206 Siege Activations . | . . . . Robots Corrupted . | . . . . Combat Hostiles . | . . . . Parts Fried 1 | . . 1 . Impact Corruptions . | . . . . Robots Melted . | . . . . Combat Hostiles . | . . . . Parts Melted . | . . . . Heat Transferred 2657 | 125 275 . 2257 Parts Sabotaged . | . . . . Parts Stolen . | . . . . Parts Stripped . | . . . . Power Chain Reactions 1 | . . . 1 Alert | -11 -10 -10 -8 ------- Run | Yrd Mat Sub Mat Peak Influence 606 | 15 143 . 606 Initial 9 | . 9 . . Average 147 | 4 36 . 239 Maximum Alert Level 2 | . . . 2 Low Security (%) 69 | 100 100 . 45 Level 1 25 | . . . 45 Level 2 5 | . . . 9 Level 3 . | . . . . Level 4 . | . . . . Level 5 . | . . . . High Security . | . . . . Max Security . | . . . . Squads Dispatched 8 | . 3 . 5 Investigation 4 | . 1 . 3 Extermination . | . . . . Reinforcement 4 | . 2 . 2 Assault . | . . . . Garrison . | . . . . Intercept . | . . . . Searches Triggered . | . . . . Construction Impeded . | . . . . Haulers Reinforced . | . . . . Active Scanning Responses . | . . . . Cargo Convoy Interrupts . | . . . . Stealth | -11 -10 -10 -8 --------- Run | Yrd Mat Sub Mat Distress Signals 2 | . . . 2 Communications Jammed . | . . . . Distress Signals . | . . . . Times Spotted 62 | . 9 5 48 Peak Tracking Total 12 | . 4 3 12 Tactical Retreats 2 | . . . 2 Traps | -11 -10 -10 -8 ------- Run | Yrd Mat Sub Mat Traps Triggered 2 | . 1 . 1 Indirectly . | . . . . Trap Hack Attempts . | . . . . Triggered . | . . . . Disarmed . | . . . . Reprogrammed . | . . . . Reused . | . . . . Traps Extracted . | . . . . Installed . | . . . . Triggered . | . . . . Machines | -11 -10 -10 -8 ---------- Run | Yrd Mat Sub Mat Machines Disabled 4 | . . . 4 Max in Single Turn 1 | . . . 1 Machines Repaired . | . . . . Machines Dismantled . | . . . . Machines Sabotaged . | . . . . Overloaded Fab Kills . | . . . . Hacking | -11 -10 -10 -8 --------- Run | Yrd Mat Sub Mat Machines Accessed 4 | . 2 . 2 Terminals 3 | . 2 . 1 Fabricators . | . . . . Repair Stations . | . . . . Recycling Units . | . . . . Scanalyzers 1 | . . . 1 Garrison Access . | . . . . Total Hacks 16 | . 10 . 6 Successful 7 | . 3 . 4 Failed 9 | . 7 . 2 Catastrophic 5 | . 3 . 2 Database Lockouts . | . . . . Manual 9 | . 9 . . Terminals 12 | . 10 . 2 Fabricators . | . . . . Repair Stations . | . . . . Recycling Units . | . . . . Scanalyzers 4 | . . . 4 Garrison Access . | . . . . Terminal Hacks 3 | . 3 . . Part Schematic 1 | . 1 . . Robot Schematic 2 | . 2 . . Fabricator Hacks . | . . . . Repair Station Hacks . | . . . . Recycling Unit Hacks . | . . . . Scanalyzer 4 | . . . 4 Insert Component 1 | . . . 1 Analyze 3 | . . . 3 Garrison Access Hacks . | . . . . Unauthorized Hacks . | . . . . Terminals . | . . . . Fabricators . | . . . . Repair Stations . | . . . . Recycling Units . | . . . . Scanalyzers . | . . . . Garrison Access . | . . . . Data Cores Recovered . | . . . . Used . | . . . . Hacking Detections 4 | . 2 . 2 Full Trace Events 4 | . 2 . 2 Feedback Events . | . . . . Feedback Blocked . | . . . . Robot Schematics Acquired 2 | . 2 . . Robots Built . | . . . . Authchips . | . . . . Time . | . . . . Total Robot Build Rating . | . . . . Part Schematics Acquired 2 | . 1 . 1 Parts Built . | . . . . Authchips . | . . . . Time . | . . . . Total Part Build Rating . | . . . . Parts Repaired . | . . . . Time . | . . . . Parts Recycled . | . . . . Recycled Matter . | . . . . Retrieved Matter . | . . . . Retrieved Components . | . . . . Parts Scanalyzed 1 | . . . 1 Part Schematics Acquired 1 | . . . 1 Parts Damaged . | . . . . Bothacking | -11 -10 -10 -8 ------------ Run | Yrd Mat Sub Mat Used RIF Installer . | . . . . Robots Hacked . | . . . . Non-combat . | . . . . Combat . | . . . . Robot Hacks Applied . | . . . . Relay Couplers Released . | . . . . Fabnet Peak Effective % . | . . . . Robots Rewired . | . . . . Allies Hacked . | . . . . Hacks Repelled . | . . . . Allies | -11 -10 -10 -8 -------- Run | Yrd Mat Sub Mat Total Allies . | . . . . Largest Group . | . . . . Highest-Rated Group . | . . . . Highest-Rated Ally . | . . . . Total Orders . | . . . . Ally Attacks . | . . . . Total Damage . | . . . . Kills . | . . . . Allies Corrupted . | . . . . Allies Melted . | . . . . Intel | -11 -10 -10 -8 ------- Run | Yrd Mat Sub Mat Robot Analysis Total . | . . . . Derelict Logs Recovered 1 | . . 1 . Drone Launches . | . . . . Drone Recoveries . | . . . . Exploration | -11 -10 -10 -8 ------------- Run | Yrd Mat Sub Mat Turns Passed 1847 | 128 462 506 751 Spaces Moved 930 | 63 246 278 343 Core 6 | 3 . . 3 Treads 501 | 60 246 180 15 Legs . | . . . . Wheels 261 | . . 98 163 Hover 162 | . . . 162 Flight . | . . . . Fastest Speed 40 | 50 160 115 40 Average Speed 130 | 154 160 144 94 Slowest Speed 600 | 160 160 160 600 Overloaded Moves . | . . . . Propulsion Burnouts . | . . . . Robots Hopped . | . . . . Cave-ins Triggered . | . . . . Exploration Rate (%) 27 | 6 36 29 37 Regions Visited 3 Branch Regions 1 Pre-discovered Areas . | . . . . Known Exits Taken . | . . . . Unknown Exits Taken 3 | 1 1 1 . Scrap Searched . | . . . . Spaces Dug . | . . . . Terrain Destroyed 113 | . . . 113 Melee . | . . . . Projectile . | . . . . AOE 113 | . . . 113 Terrain Rammed . | . . . . Walls Destroyed . | . . . . Machines Disabled . | . . . . Actions | -11 -10 -10 -8 --------- Run | Yrd Mat Sub Mat Total 1276 | 80 274 349 573 Wait 80 | . . 35 45 Move 927 | 62 245 277 343 Hop . | . . . . Pick Up 25 | 6 7 3 9 Fast Attach 36 | 7 . 1 28 Attach 19 | . . 3 16 Detach 4 | . . . 4 Swap 13 | . 3 2 8 Drop 18 | . 1 3 14 Fire 153 | 5 18 25 105 Melee . | . . . . Ram 1 | . . . 1 Kick . | . . . . Crush . | . . . . Escape Stasis . | . . . . Rewire . | . . . . Trap . | . . . . Miscellaneous . | . . . . Route ------- -11/Scrapyard -10/Materials (discovered 3 exits: [*Mat] / [*Min] / [*Sub]) -10/Subcaves -8/Materials History --------- Turn | Location | Event 8 | -11/Scrapyard | Discovered new exit (range 15) 129 | -11/Scrapyard | Entered Materials 309 | -10/Materials | Build established: Mutant 357 | -10/Materials | Discovered new exit (range 5) 411 | -10/Materials | Discovered new exit (range 8) 426 | -10/Materials | Discovered new exit (range 11) 591 | -10/Materials | Entered Subcaves 647 | -10/Subcaves | Learned Materials terminal intel 789 | -10/Subcaves | Shifting Twisted Machinery released Spk. Treads 790 | -10/Subcaves | Shifting Twisted Machinery released Mak. System Restoration Module 907 | -10/Subcaves | Core integrity fell below 50% 987 | -10/Subcaves | Discovered new exit (range 6) 1068 | -10/Subcaves | Core integrity fell below 20% 1097 | -10/Subcaves | Entered Materials 1097 | -8/Materials | Evolved 4 slots: Propulsion x2, Utility x2 1098 | -8/Materials | Loaded intel: 12 terminal locations 1241 | -8/Materials | Lost 6 parts (1p3n2u) 1515 | -8/Materials | Destroyed 9 combat bots 1553 | -8/Materials | Core integrity fell below 50% 1686 | -8/Materials | Lost 15 parts (1p3n5u6w) 1779 | -8/Materials | Core integrity fell below 20% 1816 | -8/Materials | Lost 4 parts (1p1n1u1w) 1848 | -8/Materials | Destroyed by G-47 Trooper with Particle Gun Last Messages --------------- 01781_ Acquired Beam Rifle. 01782_ R-06 Scavenger collects Aluminum Leg. 01783_ K-01 Serf collects debris. 01784_ Structural Scanner destroyed. 01785_ Lgt. Treads destroyed. 01785_ R-06 Scavenger collects Particle Gun. 01787_ Acquired Imp. Ion Engine. 01799_ K-01 Serf cleans the Terminal. 01800_ T-07 Excavator is excavating. 01802_ K-01 Serf cleans the Terminal. 01802_ Connecting with Terminal... 01802_ ALERT: Suspicious activity at Terminal M011. Dispatching Investigation squad. 01803_ Acquired Airjet. 01804_ T-07 Excavator is excavating. 01806_ K-01 Serf cleans the Terminal. 01813_ S-10 Pest destroyed. 01829_ Acquired Prototype Flight Unit. 01831_ Acquired 14 matter. 01838_ K-01 Serf collects debris. Map ----- +----------------------------------------------------+ | ?????????????????????????????????????????????????? | | ?????????????????????????????????????????????????? | | ?????????????????????????????????????????????????? | | ?????????????????????????????????????????????????? | | ?????????????????????????????????????????????????? | | ?????????????????????????????????????????????????? | | ?????????????????????????????????????????????????? | | ?????????????????????????????????????????????????? | | ?????????????????????????????????????????????????? | | ?????????????????????????????????????????????????? | | ?????????????????????????????????????????????????? | | ?????????????????????????????????????????????????? | | ?????????????????????????????????????????????????? | | ?????????????????????????????????????????????????? | | ?????????????????????????????????????????????????T | | ?????????????????????????????????????????????????? | | ?????????????????????????????????????????????????? | | ?????????????????????????????????????????????????? | | ?????????????????????????????????????????????????? | | ???????????????????????###############???????????? | | ???????????????????????# #???????????? | | ???????????????????????# #???????????? | | ???????????????????????# """"" #???????????? | | ???????????????????????# """"""""" #???????????? | | ????????"T"????????????# g""" """ #??????????#? | | ????????"""????????????# @%gkg*g #??????????? | | ???????????????????????#####g#########??????????? | | ??????????????????????????#=*=#??????????????????? | | ??????????????????T???????#=*[###????????????????? | | ??????????????????????????# # #????????????????? | | ??????????????????????????# #????????????????? | | ??????????????????????????# # #????????????????? | | ??????????????????????????# ##?????????????????? | | ?????????????????????????## ##????????#########? | | ?????????????? ?????????# #????????# ? | | ???????????? ##### #????????# # | | ???????????? T +????????# # | | ???????????? ##### #??????????""" | | ?????????????????????????# #???????????""" | | ?????????????????????????### ###??????????"""" | | ???????????????"T"?????????# #????????????"""" | | ???????????????????????????# #??????????# """ | | ???????????????????????????# #??????????# | | ????? ?????????????????# #??????????######### | | ????? ?????????????????# #??#####??????????# | | ????? ?????????????????# #### #####??????## | | ????? ?????????????????# ## # ##?????## | | ????? ?????????????????# ## # ######### | | ?????# #?#############???# # # | | ?????# #?#################+#####* ! | +----------------------------------------------------+ Best States ------------- Heat Dissipation 45 Energy Generation 15 Energy Capacity 265 Matter Stores 300 Matter Capacity 300 Sight Range 16 Robot Scan Range 15 Terrain Scan Range 16 Terrain Scan Density 10 Armor Coverage 150 Core Shielding 20 Weapon Shielding 66 Evasion (%) 57 Targeting Accuracy 5 Recoil Reduction 2 Item Schematics ----------------- Hcp. Storage Unit | -10/Materials | Hacked Aerolev Unit | -8/Materials | Scanalyzed Robot Schematics ------------------ M-13 Machinist | -10/Materials | Hacked O-16 Technician | -10/Materials | Hacked Fabricated ------------ Nothing Alien Tech Used ----------------- None Achievements -------------- None Challenges ------------ None Game ------ Seed SwarmSuperquantumMask Manual? 0 Play Time 00:17:04 Cumulative 690.1 hours Start 2024.09.05 @ 17:57:06 End 2024.09.05 @ 18:19:22 Sessions 1 Manual Loads 0 Difficulty Rogue Special Mode None Game No. 145 Rogue 7 Adventurer 138 Explorer 0 Win Type - Total 11 Types 7/0/1/2/0/0/0/0/1 Lore% 77 Gallery% 84 Achievement% 73 Wizard Run 0 Options --------- Layout 2 ASCII 0 Keyboard 0 Movement Mouse Keybinds 0 Fullscreen 1 Font 24/Smallcaps Map View 50x49 Zoom Use 0% Tactical HUD 1 Map Filters NONE Filters NONE Steam 1 RUN: c418a704-195f-4144-81a0-685a4998d14e